[Event "Titled Tuesday Blitz August 24 2021"]
[White "Zhigalko, Sergei"]
[Black "Molina, Roberto Junio Brito"]
[WhiteFideId "13502956"]
[BlackFideId "2109450"]
[WhiteElo "2662"]
[BlackElo "2402"]
[Result "1-0"]
[Round "07"]
[TimeControl "180+1"]
[Date "2021.08.24"]
[WhiteClock "0:00:05"]
[BlackClock "0:00:03"]

1. e4 {[%clk 0:03:00]}  c6 {[%clk 0:02:59]} 2. d4 {[%clk 0:03:01]}  d5 {[%clk 0:02:59]} 3. e5 {[%clk 0:03:01]}  Bf5 {[%clk 0:02:59]} 4. Nf3 {[%clk 0:03:02]}  e6 {[%clk 0:02:59]} 5. Be2 {[%clk 0:03:03]}  Nd7 {[%clk 0:02:59]} 6. O-O {[%clk 0:03:03]}  h6 {[%clk 0:02:59]} 7. Nbd2 {[%clk 0:03:03]}  Ne7 {[%clk 0:03:00]} 8. a4 {[%clk 0:03:02]}  Bh7 {[%clk 0:03:00]} 9. a5 {[%clk 0:03:02]}  Ng6 {[%clk 0:03:00]} 10. Nb3 {[%clk 0:02:54]}  a6 {[%clk 0:02:55]} 11. c4 {[%clk 0:02:54]}  dxc4 {[%clk 0:02:53]} 12. Bxc4 {[%clk 0:02:54]}  Be7 {[%clk 0:02:54]} 13. Re1 {[%clk 0:02:52]}  O-O {[%clk 0:02:54]} 14. Qe2 {[%clk 0:02:44]}  Re8 {[%clk 0:02:54]} 15. Bd2 {[%clk 0:02:41]}  Rc8 {[%clk 0:02:53]} 16. Rad1 {[%clk 0:02:40]}  Rc7 {[%clk 0:02:53]} 17. g3 {[%clk 0:02:38]}  Bf8 {[%clk 0:02:49]} 18. h4 {[%clk 0:02:31]}  Ne7 {[%clk 0:02:48]} 19. Bb4 {[%clk 0:02:30]}  Nd5 {[%clk 0:02:47]} 20. Bxf8 {[%clk 0:02:28]}  Nxf8 {[%clk 0:02:48]} 21. Nfd2 {[%clk 0:02:17]}  Bc2 {[%clk 0:02:03]} 22. Rc1 {[%clk 0:02:15]}  Bxb3 {[%clk 0:02:04]} 23. Nxb3 {[%clk 0:02:15]}  Ng6 {[%clk 0:02:02]} 24. Bd3 {[%clk 0:02:12]}  Nf8 {[%clk 0:01:53]} 25. Bb1 {[%clk 0:02:11]}  Rce7 {[%clk 0:01:51]} 26. Qe4 {[%clk 0:02:06]}  f6 {[%clk 0:01:47]} 27. exf6 {[%clk 0:01:51]}  Nxf6 {[%clk 0:01:47]} 28. Qe5 {[%clk 0:01:16]}  Rd7 {[%clk 0:01:25]} 29. Ba2 {[%clk 0:01:06]}  Rd5 {[%clk 0:01:10]} 30. Qe2 {[%clk 0:01:05]}  Kh8 {[%clk 0:01:00]} 31. Rcd1 {[%clk 0:00:56]}  Rf5 {[%clk 0:00:32]} 32. Qd2 {[%clk 0:00:35]}  Rb5 {[%clk 0:00:26]} 33. Re2 {[%clk 0:00:26]}  Qc7 {[%clk 0:00:25]} 34. Rde1 {[%clk 0:00:25]}  Rd8 {[%clk 0:00:25]} 35. Qc1 {[%clk 0:00:20]}  Nd5 {[%clk 0:00:21]} 36. Re5 {[%clk 0:00:17]}  Nb4 {[%clk 0:00:19]} 37. Bb1 {[%clk 0:00:17]}  Rxe5 {[%clk 0:00:16]} 38. dxe5 {[%clk 0:00:11]}  Nd5 {[%clk 0:00:12]} 39. Nc5 {[%clk 0:00:12]}  Re8 {[%clk 0:00:10]} 40. Qd2 {[%clk 0:00:10]}  Re7 {[%clk 0:00:10]} 41. b4 {[%clk 0:00:09]}  Kg8 {[%clk 0:00:09]} 42. Re4 {[%clk 0:00:05]}  Qd8 {[%clk 0:00:09]} 43. Qd3 {[%clk 0:00:05]}  Qe8 {[%clk 0:00:09]} 44. Rg4 {[%clk 0:00:04]}  Qh5 {[%clk 0:00:07]} 45. Qf3 {[%clk 0:00:03]}  Qxe5 {[%clk 0:00:05]} 46. Re4 {[%clk 0:00:02]}  Qa1 {[%clk 0:00:03]} 47. Re1 {[%clk 0:00:02]}  Qf6 {[%clk 0:00:03]} 48. Qe4 {[%clk 0:00:02]}  g6 {[%clk 0:00:03]} 49. Qc4 {[%clk 0:00:02]}  Kg7 {[%clk 0:00:03]} 50. Ne4 {[%clk 0:00:02]}  Qe5 {[%clk 0:00:02]} 51. Qc5 {[%clk 0:00:03]}  Rf7 {[%clk 0:00:01]} 52. f4 {[%clk 0:00:03]}  Qf5 {[%clk 0:00:02]} 53. Nd6 {[%clk 0:00:03]}  Qh3 {[%clk 0:00:02]} 54. Qd4+ {[%clk 0:00:04]}  e5 {[%clk 0:00:02]} 55. Qxe5+ {[%clk 0:00:04]}  Kg8 {[%clk 0:00:02]} 56. Kf2 {[%clk 0:00:04]}  Rg7 {[%clk 0:00:01]} 57. Ne4 {[%clk 0:00:03]}  Nd7 {[%clk 0:00:01]} 58. Qd4 {[%clk 0:00:03]}  Kh7 {[%clk 0:00:01]} 59. Ba2 {[%clk 0:00:03]}  Rf7 {[%clk 0:00:01]} 60. Bxd5 {[%clk 0:00:03]}  cxd5 {[%clk 0:00:01]} 61. Qxd5 {[%clk 0:00:04]}  Qf5 {[%clk 0:00:02]} 62. Qxf5 {[%clk 0:00:03]}  Rxf5 {[%clk 0:00:03]} 63. Nd6 {[%clk 0:00:03]}  Rd5 {[%clk 0:00:01]} 64. Re7+ {[%clk 0:00:04]}  Kg8 {[%clk 0:00:02]} 65. Rxd7 {[%clk 0:00:04]}  Rd2+ {[%clk 0:00:02]} 66. Ke3 {[%clk 0:00:04]}  Rb2 {[%clk 0:00:03]} 67. Rxb7 {[%clk 0:00:05]} 1-0


[Site "https://www.chess.com"]

[Event "Titled Tuesday Blitz August 24 2021"]
[White "Zubov, Alexander"]
[Black "Trent, Lawrence"]
[WhiteFideId "14109409"]
[BlackFideId "408638"]
[WhiteElo "2740"]
[BlackElo "2474"]
[Result "1-0"]
[Round "07"]
[TimeControl "180+1"]
[Date "2021.08.24"]
[WhiteClock "0:00:09"]
[BlackClock "0:00:18"]

1. e4 {[%clk 0:03:00]}  c5 {[%clk 0:02:58]} 2. Nf3 {[%clk 0:03:00]}  Nc6 {[%clk 0:02:55]} 3. Bb5 {[%clk 0:02:59]}  e5 {[%clk 0:02:49]} 4. O-O {[%clk 0:02:55]}  Bd6 {[%clk 0:02:49]} 5. d3 {[%clk 0:02:52]}  Nge7 {[%clk 0:02:48]} 6. a4 {[%clk 0:02:44]}  O-O {[%clk 0:02:46]} 7. Bc4 {[%clk 0:02:41]}  Bc7 {[%clk 0:02:42]} 8. Nc3 {[%clk 0:02:32]}  d6 {[%clk 0:02:39]} 9. h3 {[%clk 0:02:33]}  Be6 {[%clk 0:02:38]} 10. Ng5 {[%clk 0:02:31]}  Qd7 {[%clk 0:02:33]} 11. Qh5 {[%clk 0:01:17]}  h6 {[%clk 0:02:32]} 12. Nxe6 {[%clk 0:01:17]}  fxe6 {[%clk 0:02:32]} 13. Be3 {[%clk 0:01:12]}  Rf6 {[%clk 0:02:28]} 14. Qg4 {[%clk 0:01:06]}  Rd8 {[%clk 0:02:16]} 15. h4 {[%clk 0:00:55]}  Kh8 {[%clk 0:02:02]} 16. Bb3 {[%clk 0:00:47]}  Nd4 {[%clk 0:02:01]} 17. Bxd4 {[%clk 0:00:47]}  cxd4 {[%clk 0:01:58]} 18. Ne2 {[%clk 0:00:45]}  Rdf8 {[%clk 0:01:55]} 19. h5 {[%clk 0:00:44]}  Ba5 {[%clk 0:01:54]} 20. c3 {[%clk 0:00:40]}  dxc3 {[%clk 0:01:53]} 21. bxc3 {[%clk 0:00:41]}  Bb6 {[%clk 0:01:51]} 22. d4 {[%clk 0:00:42]}  exd4 {[%clk 0:01:51]} 23. cxd4 {[%clk 0:00:42]}  Nc6 {[%clk 0:01:44]} 24. Rad1 {[%clk 0:00:42]}  Qe7 {[%clk 0:01:38]} 25. Kh1 {[%clk 0:00:41]}  Rxf2 {[%clk 0:01:34]} 26. Rxf2 {[%clk 0:00:40]}  Rxf2 {[%clk 0:01:35]} 27. Nf4 {[%clk 0:00:40]}  Qg5 {[%clk 0:01:22]} 28. Qxe6 {[%clk 0:00:18]}  Ne7 {[%clk 0:00:58]} 29. Qxe7 {[%clk 0:00:16]}  Qxf4 {[%clk 0:00:50]} 30. Qe8+ {[%clk 0:00:14]}  Qf8 {[%clk 0:00:50]} 31. Qxf8+ {[%clk 0:00:14]}  Rxf8 {[%clk 0:00:48]} 32. Bd5 {[%clk 0:00:09]}  Rb8 {[%clk 0:00:41]} 33. g4 {[%clk 0:00:07]}  Bd8 {[%clk 0:00:37]} 34. e5 {[%clk 0:00:07]}  dxe5 {[%clk 0:00:36]} 35. dxe5 {[%clk 0:00:08]}  Be7 {[%clk 0:00:36]} 36. Rc1 {[%clk 0:00:05]}  Bd8 {[%clk 0:00:27]} 37. Bf7 {[%clk 0:00:04]}  a6 {[%clk 0:00:23]} 38. e6 {[%clk 0:00:03]}  b5 {[%clk 0:00:22]} 39. axb5 {[%clk 0:00:03]}  axb5 {[%clk 0:00:23]} 40. Rd1 {[%clk 0:00:03]}  Bf6 {[%clk 0:00:14]} 41. Rd7 {[%clk 0:00:02]}  b4 {[%clk 0:00:08]} 42. e7 {[%clk 0:00:02]}  Bxe7 {[%clk 0:00:06]} 43. Rxe7 {[%clk 0:00:03]}  b3 {[%clk 0:00:07]} 44. Bg6 {[%clk 0:00:02]}  b2 {[%clk 0:00:07]} 45. Bb1 {[%clk 0:00:02]}  Rd8 {[%clk 0:00:08]} 46. Kg2 {[%clk 0:00:02]}  Ra8 {[%clk 0:00:07]} 47. Rb7 {[%clk 0:00:02]}  Rc8 {[%clk 0:00:07]} 48. Rxb2 {[%clk 0:00:03]}  Rf8 {[%clk 0:00:08]} 49. Kg3 {[%clk 0:00:03]}  Rc8 {[%clk 0:00:08]} 50. Rf2 {[%clk 0:00:03]}  Rd8 {[%clk 0:00:09]} 51. Bf5 {[%clk 0:00:04]}  Rc8 {[%clk 0:00:10]} 52. Kh4 {[%clk 0:00:04]}  Rb8 {[%clk 0:00:10]} 53. Re2 {[%clk 0:00:04]}  Ra8 {[%clk 0:00:11]} 54. Re7 {[%clk 0:00:05]}  Rb8 {[%clk 0:00:12]} 55. Rc7 {[%clk 0:00:05]}  Ra8 {[%clk 0:00:13]} 56. Rc8+ {[%clk 0:00:05]}  Rxc8 {[%clk 0:00:13]} 57. Bxc8 {[%clk 0:00:06]}  Kg8 {[%clk 0:00:14]} 58. Bf5 {[%clk 0:00:06]}  Kh8 {[%clk 0:00:14]} 59. Kg3 {[%clk 0:00:06]}  Kg8 {[%clk 0:00:15]} 60. Kf4 {[%clk 0:00:07]}  Kh8 {[%clk 0:00:16]} 61. Ke5 {[%clk 0:00:07]}  Kg8 {[%clk 0:00:17]} 62. Ke6 {[%clk 0:00:08]}  Kh8 {[%clk 0:00:18]} 63. Kf7 {[%clk 0:00:08]}  g5 {[%clk 0:00:18]} 64. hxg6 {[%clk 0:00:08]}  h5 {[%clk 0:00:18]} 65. g7# {[%clk 0:00:09]} 1-0


[Site "https://www.chess.com"]

[Event "Titled Tuesday Blitz August 24 2021"]
[White "Andreikin, Dmitry"]
[Black "Svane, Rasmus"]
[WhiteFideId "4158814"]
[BlackFideId "4657101"]
[WhiteElo "2782"]
[BlackElo "2669"]
[Result "1-0"]
[Round "08"]
[TimeControl "180+1"]
[Date "2021.08.24"]
[WhiteClock "0:00:10"]
[BlackClock "0:00:16"]

1. d4 {[%clk 0:03:00]}  Nf6 {[%clk 0:02:59]} 2. c4 {[%clk 0:03:00]}  e6 {[%clk 0:03:00]} 3. Nf3 {[%clk 0:03:00]}  d5 {[%clk 0:03:00]} 4. Nc3 {[%clk 0:02:58]}  Be7 {[%clk 0:03:00]} 5. Bf4 {[%clk 0:02:56]}  O-O {[%clk 0:02:59]} 6. e3 {[%clk 0:02:56]}  Nbd7 {[%clk 0:03:00]} 7. c5 {[%clk 0:02:55]}  Nh5 {[%clk 0:03:00]} 8. Be2 {[%clk 0:02:49]}  Nxf4 {[%clk 0:02:57]} 9. exf4 {[%clk 0:02:50]}  b6 {[%clk 0:02:58]} 10. b4 {[%clk 0:02:49]}  a5 {[%clk 0:02:57]} 11. a3 {[%clk 0:02:50]}  c6 {[%clk 0:02:57]} 12. O-O {[%clk 0:02:49]}  Ba6 {[%clk 0:02:58]} 13. g3 {[%clk 0:02:46]}  Bf6 {[%clk 0:02:39]} 14. Ne5 {[%clk 0:02:38]}  Bxe5 {[%clk 0:02:34]} 15. fxe5 {[%clk 0:02:39]}  Bxe2 {[%clk 0:02:30]} 16. Qxe2 {[%clk 0:02:38]}  axb4 {[%clk 0:02:30]} 17. axb4 {[%clk 0:02:38]}  Rxa1 {[%clk 0:02:31]} 18. Rxa1 {[%clk 0:02:38]}  bxc5 {[%clk 0:02:32]} 19. bxc5 {[%clk 0:02:38]}  f6 {[%clk 0:02:32]} 20. f4 {[%clk 0:02:11]}  fxe5 {[%clk 0:02:32]} 21. fxe5 {[%clk 0:02:12]}  Qg5 {[%clk 0:02:10]} 22. Kg2 {[%clk 0:02:12]}  Rb8 {[%clk 0:01:26]} 23. h4 {[%clk 0:01:46]}  Qd8 {[%clk 0:01:20]} 24. Qg4 {[%clk 0:01:39]}  Nf8 {[%clk 0:01:20]} 25. Ra7 {[%clk 0:01:36]}  g6 {[%clk 0:00:58]} 26. Qf4 {[%clk 0:00:56]}  Nd7 {[%clk 0:00:57]} 27. h5 {[%clk 0:00:42]}  Ra8 {[%clk 0:00:56]} 28. Rxa8 {[%clk 0:00:38]}  Qxa8 {[%clk 0:00:57]} 29. Qg5 {[%clk 0:00:27]}  Qe8 {[%clk 0:00:53]} 30. Ne2 {[%clk 0:00:25]}  Nf8 {[%clk 0:00:51]} 31. Nf4 {[%clk 0:00:24]}  Qf7 {[%clk 0:00:46]} 32. h6 {[%clk 0:00:18]}  Qf5 {[%clk 0:00:36]} 33. Qe7 {[%clk 0:00:16]}  Qf7 {[%clk 0:00:31]} 34. Qd8 {[%clk 0:00:14]}  Qf5 {[%clk 0:00:22]} 35. Qc7 {[%clk 0:00:14]}  Qe4+ {[%clk 0:00:20]} 36. Kh2 {[%clk 0:00:11]}  Qc2+ {[%clk 0:00:16]} 37. Ng2 {[%clk 0:00:10]} 1-0


[Site "https://www.chess.com"]

[Event "Titled Tuesday Blitz August 24 2021"]
[White "Bai, Adelard"]
[Black "Helin, Mikael"]
[WhiteFideId "16301188"]
[BlackFideId "1703838"]
[WhiteElo "2120"]
[BlackElo "1893"]
[Result "0-1"]
[Round "08"]
[TimeControl "180+1"]
[Date "2021.08.24"]
[WhiteClock "0:00:01"]
[BlackClock "0:00:28"]

1. d4 {[%clk 0:02:59]}  d5 {[%clk 0:02:58]} 2. Nf3 {[%clk 0:02:59]}  Nc6 {[%clk 0:02:57]} 3. c4 {[%clk 0:02:56]}  Bg4 {[%clk 0:02:57]} 4. cxd5 {[%clk 0:02:55]}  Bxf3 {[%clk 0:02:56]} 5. gxf3 {[%clk 0:02:41]}  Qxd5 {[%clk 0:02:55]} 6. e3 {[%clk 0:02:42]}  e5 {[%clk 0:02:54]} 7. Nc3 {[%clk 0:02:43]}  Bb4 {[%clk 0:02:53]} 8. a3 {[%clk 0:02:44]}  Bxc3+ {[%clk 0:02:51]} 9. bxc3 {[%clk 0:02:45]}  Qd6 {[%clk 0:02:48]} 10. Rg1 {[%clk 0:02:42]}  g6 {[%clk 0:02:46]} 11. a4 {[%clk 0:02:40]}  exd4 {[%clk 0:02:42]} 12. cxd4 {[%clk 0:02:38]}  O-O-O {[%clk 0:02:38]} 13. Rb1 {[%clk 0:02:33]}  Re8 {[%clk 0:02:22]} 14. e4 {[%clk 0:01:52]}  Nxd4 {[%clk 0:01:53]} 15. Be3 {[%clk 0:01:27]}  Rd8 {[%clk 0:01:42]} 16. f4 {[%clk 0:00:43]}  Qc5 {[%clk 0:01:24]} 17. Bh3+ {[%clk 0:00:23]}  f5 {[%clk 0:01:22]} 18. Kf1 {[%clk 0:00:20]}  Qc4+ {[%clk 0:01:13]} 19. Kg2 {[%clk 0:00:20]}  Nh6 {[%clk 0:01:09]} 20. Rc1 {[%clk 0:00:17]}  Qe6 {[%clk 0:00:55]} 21. e5 {[%clk 0:00:10]}  Qd5+ {[%clk 0:00:53]} 22. f3 {[%clk 0:00:04]}  Ng4 {[%clk 0:00:52]} 23. Re1 {[%clk 0:00:03]}  Nxe3+ {[%clk 0:00:40]} 24. Rxe3 {[%clk 0:00:04]}  Qa2+ {[%clk 0:00:40]} 25. Kg3 {[%clk 0:00:02]}  h5 {[%clk 0:00:28]} 26. Qd2 {[%clk 0:00:01]} 0-1


[Site "https://www.chess.com"]

[Event "Titled Tuesday Blitz August 24 2021"]
[White "Bok, Benjamin"]
[Black "Drozdowski, Kacper"]
[WhiteFideId "1017063"]
[BlackFideId "1136720"]
[WhiteElo "2658"]
[BlackElo "2507"]
[Result "1-0"]
[Round "08"]
[TimeControl "180+1"]
[Date "2021.08.24"]
[WhiteClock "0:01:38"]
[BlackClock "0:01:38"]

1. d4 {[%clk 0:03:00]}  Nf6 {[%clk 0:02:49]} 2. c4 {[%clk 0:03:00]}  g6 {[%clk 0:02:49]} 3. Nf3 {[%clk 0:03:00]}  Bg7 {[%clk 0:02:49]} 4. g3 {[%clk 0:03:01]}  O-O {[%clk 0:02:49]} 5. Bg2 {[%clk 0:03:01]}  d5 {[%clk 0:02:49]} 6. O-O {[%clk 0:03:00]}  c6 {[%clk 0:02:48]} 7. b3 {[%clk 0:03:00]}  a5 {[%clk 0:02:47]} 8. Nc3 {[%clk 0:03:00]}  Be6 {[%clk 0:02:38]} 9. Bb2 {[%clk 0:02:55]}  Nbd7 {[%clk 0:02:32]} 10. Ng5 {[%clk 0:02:50]}  Bf5 {[%clk 0:02:30]} 11. cxd5 {[%clk 0:02:49]}  cxd5 {[%clk 0:02:29]} 12. Nxd5 {[%clk 0:02:48]}  Rc8 {[%clk 0:02:10]} 13. Ne3 {[%clk 0:02:31]}  b5 {[%clk 0:02:01]} 14. Nxf5 {[%clk 0:02:27]}  gxf5 {[%clk 0:02:00]} 15. Qd3 {[%clk 0:02:28]}  e6 {[%clk 0:01:54]} 16. Qxb5 {[%clk 0:02:26]}  Rc2 {[%clk 0:01:51]} 17. Ba3 {[%clk 0:02:24]}  Re8 {[%clk 0:01:51]} 18. Rfc1 {[%clk 0:02:18]}  Rd2 {[%clk 0:01:45]} 19. Nf3 {[%clk 0:02:13]}  Ne4 {[%clk 0:01:43]} 20. Nxd2 {[%clk 0:02:11]}  Nxd2 {[%clk 0:01:43]} 21. Bc6 {[%clk 0:02:07]}  Bxd4 {[%clk 0:01:41]} 22. Bxd7 {[%clk 0:02:06]}  Ne4 {[%clk 0:01:40]} 23. Bxe8 {[%clk 0:01:48]}  Bxf2+ {[%clk 0:01:40]} 24. Kg2 {[%clk 0:01:47]}  Qg5 {[%clk 0:01:38]} 25. Qd7 {[%clk 0:01:38]} 1-0


[Site "https://www.chess.com"]

[Event "Titled Tuesday Blitz August 24 2021"]
[White "Borsuk, Konstantin"]
[Black "Vakhidov, Shahzod"]
[WhiteFideId "14113406"]
[BlackFideId "14205270"]
[WhiteElo "2382"]
[BlackElo "1988"]
[Result "1-0"]
[Round "08"]
[TimeControl "180+1"]
[Date "2021.08.24"]
[WhiteClock "0:00:37"]
[BlackClock "0:00:42"]

1. d4 {[%clk 0:03:00]}  g6 {[%clk 0:02:59]} 2. c4 {[%clk 0:03:00]}  Bg7 {[%clk 0:02:59]} 3. Nc3 {[%clk 0:03:01]}  d6 {[%clk 0:02:59]} 4. e4 {[%clk 0:03:01]}  e5 {[%clk 0:03:00]} 5. d5 {[%clk 0:03:02]}  a5 {[%clk 0:03:00]} 6. Be3 {[%clk 0:03:00]}  Bh6 {[%clk 0:02:57]} 7. Bxh6 {[%clk 0:02:59]}  Nxh6 {[%clk 0:02:57]} 8. h4 {[%clk 0:03:00]}  Na6 {[%clk 0:02:46]} 9. h5 {[%clk 0:02:58]}  Kf8 {[%clk 0:02:40]} 10. Qd2 {[%clk 0:02:55]}  Kg7 {[%clk 0:02:40]} 11. f3 {[%clk 0:02:49]}  Nc5 {[%clk 0:02:38]} 12. g4 {[%clk 0:02:47]}  f5 {[%clk 0:02:29]} 13. exf5 {[%clk 0:02:39]}  gxf5 {[%clk 0:02:28]} 14. g5 {[%clk 0:02:37]}  Nf7 {[%clk 0:02:29]} 15. h6+ {[%clk 0:02:33]}  Kf8 {[%clk 0:02:28]} 16. f4 {[%clk 0:02:33]}  exf4 {[%clk 0:02:25]} 17. Nf3 {[%clk 0:02:27]}  Nxg5 {[%clk 0:02:23]} 18. Nxg5 {[%clk 0:02:22]}  Qxg5 {[%clk 0:02:23]} 19. O-O-O {[%clk 0:02:22]}  Ne4 {[%clk 0:02:21]} 20. Qd4 {[%clk 0:02:17]}  f3+ {[%clk 0:02:15]} 21. Kb1 {[%clk 0:02:16]}  Qf6 {[%clk 0:02:12]} 22. Nxe4 {[%clk 0:02:12]}  Qxd4 {[%clk 0:02:11]} 23. Rxd4 {[%clk 0:02:13]}  fxe4 {[%clk 0:02:12]} 24. Kc1 {[%clk 0:02:11]}  Bf5 {[%clk 0:02:12]} 25. Kd2 {[%clk 0:02:10]}  Rg8 {[%clk 0:01:53]} 26. Ke3 {[%clk 0:02:09]}  Ke7 {[%clk 0:01:46]} 27. Bh3 {[%clk 0:01:57]}  Bg6 {[%clk 0:01:44]} 28. Kf2 {[%clk 0:01:38]}  Kf6 {[%clk 0:01:42]} 29. Rdd1 {[%clk 0:01:33]}  Ke5 {[%clk 0:01:40]} 30. Ke3 {[%clk 0:01:30]}  Rgf8 {[%clk 0:01:33]} 31. Rdg1 {[%clk 0:01:24]}  Kf6 {[%clk 0:01:16]} 32. Be6 {[%clk 0:01:20]}  a4 {[%clk 0:01:09]} 33. a3 {[%clk 0:01:05]}  Rfb8 {[%clk 0:01:07]} 34. Rh4 {[%clk 0:01:02]}  Rf8 {[%clk 0:00:59]} 35. Kf2 {[%clk 0:00:55]}  Ke7 {[%clk 0:00:58]} 36. Rhg4 {[%clk 0:00:52]}  Rh8 {[%clk 0:00:48]} 37. Rc1 {[%clk 0:00:43]}  c5 {[%clk 0:00:47]} 38. Rcg1 {[%clk 0:00:39]}  Kf6 {[%clk 0:00:46]} 39. Rf4+ {[%clk 0:00:37]}  Ke5 {[%clk 0:00:42]} 40. Ke3 {[%clk 0:00:37]} 1-0


[Site "https://www.chess.com"]

[Event "Titled Tuesday Blitz August 24 2021"]
[White "Cunjalo, Faris"]
[Black "Arabidze, Meri"]
[WhiteFideId "14410710"]
[BlackFideId "13604040"]
[WhiteElo "2234"]
[BlackElo "2432"]
[Result "1-0"]
[Round "08"]
[TimeControl "180+1"]
[Date "2021.08.24"]
[WhiteClock "0:00:11"]
[BlackClock "0:00:03"]

1. c4 {[%clk 0:03:00]}  e6 {[%clk 0:02:59]} 2. Nc3 {[%clk 0:03:00]}  d5 {[%clk 0:03:00]} 3. e3 {[%clk 0:03:00]}  Nf6 {[%clk 0:03:00]} 4. Nf3 {[%clk 0:03:01]}  c5 {[%clk 0:03:01]} 5. cxd5 {[%clk 0:03:01]}  exd5 {[%clk 0:03:02]} 6. d4 {[%clk 0:03:01]}  Nc6 {[%clk 0:03:03]} 7. Bb5 {[%clk 0:03:02]}  Bd6 {[%clk 0:03:01]} 8. dxc5 {[%clk 0:03:02]}  Bxc5 {[%clk 0:03:02]} 9. O-O {[%clk 0:03:03]}  O-O {[%clk 0:03:02]} 10. b3 {[%clk 0:02:47]}  a6 {[%clk 0:03:00]} 11. Bxc6 {[%clk 0:02:47]}  bxc6 {[%clk 0:03:01]} 12. Bb2 {[%clk 0:02:48]}  Bd6 {[%clk 0:02:57]} 13. Rc1 {[%clk 0:02:47]}  Bg4 {[%clk 0:02:57]} 14. Ne2 {[%clk 0:02:48]}  Rc8 {[%clk 0:02:51]} 15. Qd3 {[%clk 0:02:44]}  Bxf3 {[%clk 0:02:48]} 16. gxf3 {[%clk 0:02:44]}  c5 {[%clk 0:02:31]} 17. Rfd1 {[%clk 0:02:33]}  Qe7 {[%clk 0:02:29]} 18. Bxf6 {[%clk 0:02:29]}  Qxf6 {[%clk 0:02:28]} 19. Qxd5 {[%clk 0:02:29]}  Rfd8 {[%clk 0:02:27]} 20. Qe4 {[%clk 0:02:28]}  h5 {[%clk 0:02:03]} 21. f4 {[%clk 0:02:23]}  h4 {[%clk 0:02:00]} 22. h3 {[%clk 0:02:23]}  Bf8 {[%clk 0:01:46]} 23. Kf1 {[%clk 0:02:11]}  Qb2 {[%clk 0:01:43]} 24. Rxd8 {[%clk 0:02:09]}  Rxd8 {[%clk 0:01:43]} 25. Qc2 {[%clk 0:02:04]}  Rd2 {[%clk 0:01:41]} 26. Qxb2 {[%clk 0:02:03]}  Rxb2 {[%clk 0:01:41]} 27. Nc3 {[%clk 0:01:59]}  g6 {[%clk 0:01:36]} 28. Kg2 {[%clk 0:01:43]}  f5 {[%clk 0:01:33]} 29. Kf3 {[%clk 0:01:39]}  Kf7 {[%clk 0:01:33]} 30. Rd1 {[%clk 0:01:39]}  Rc2 {[%clk 0:01:29]} 31. Rd3 {[%clk 0:01:35]}  Be7 {[%clk 0:01:23]} 32. a4 {[%clk 0:01:32]}  Ke6 {[%clk 0:01:19]} 33. Nd5 {[%clk 0:01:30]}  c4 {[%clk 0:01:16]} 34. Nc7+ {[%clk 0:01:29]}  Kf7 {[%clk 0:01:15]} 35. bxc4 {[%clk 0:01:30]}  Rxc4 {[%clk 0:01:15]} 36. Nxa6 {[%clk 0:01:11]}  Rxa4 {[%clk 0:01:15]} 37. Nc7 {[%clk 0:01:12]}  Ra2 {[%clk 0:01:00]} 38. Rd7 {[%clk 0:01:09]}  Ra7 {[%clk 0:01:00]} 39. Ke2 {[%clk 0:01:05]}  Rb7 {[%clk 0:00:49]} 40. Kd3 {[%clk 0:01:04]}  Ra7 {[%clk 0:00:48]} 41. Kc4 {[%clk 0:01:05]}  Rb7 {[%clk 0:00:40]} 42. f3 {[%clk 0:01:02]}  Ra7 {[%clk 0:00:36]} 43. Kb5 {[%clk 0:01:02]}  Ra1 {[%clk 0:00:18]} 44. e4 {[%clk 0:00:58]}  Rb1+ {[%clk 0:00:17]} 45. Kc6 {[%clk 0:00:55]}  Rc1+ {[%clk 0:00:18]} 46. Kb7 {[%clk 0:00:55]}  fxe4 {[%clk 0:00:18]} 47. fxe4 {[%clk 0:00:55]}  Kf8 {[%clk 0:00:18]} 48. Nd5 {[%clk 0:00:52]}  Ba3 {[%clk 0:00:17]} 49. e5 {[%clk 0:00:44]}  Rd1 {[%clk 0:00:17]} 50. e6 {[%clk 0:00:41]}  Rd4 {[%clk 0:00:16]} 51. Rf7+ {[%clk 0:00:41]}  Ke8 {[%clk 0:00:13]} 52. Nc7+ {[%clk 0:00:15]}  Kd8 {[%clk 0:00:13]} 53. Nb5 {[%clk 0:00:16]}  Re4 {[%clk 0:00:09]} 54. Nxa3 {[%clk 0:00:11]}  Rxe6 {[%clk 0:00:09]} 55. Nc4 {[%clk 0:00:11]}  Re4 {[%clk 0:00:08]} 56. Nd6 {[%clk 0:00:10]}  Re3 {[%clk 0:00:09]} 57. Kc6 {[%clk 0:00:10]}  Rc3+ {[%clk 0:00:09]} 58. Kd5 {[%clk 0:00:11]}  Rxh3 {[%clk 0:00:09]} 59. Rg7 {[%clk 0:00:10]}  Rf3 {[%clk 0:00:09]} 60. Ke6 {[%clk 0:00:09]}  Re3+ {[%clk 0:00:09]} 61. Kf6 {[%clk 0:00:10]}  Rf3 {[%clk 0:00:09]} 62. Ke5 {[%clk 0:00:09]}  h3 {[%clk 0:00:09]} 63. Rxg6 {[%clk 0:00:10]}  Re3+ {[%clk 0:00:09]} 64. Ne4 {[%clk 0:00:10]}  Ke7 {[%clk 0:00:07]} 65. Rh6 {[%clk 0:00:11]}  Kf7 {[%clk 0:00:07]} 66. f5 {[%clk 0:00:12]}  Kg7 {[%clk 0:00:07]} 67. Rh5 {[%clk 0:00:12]}  Rf3 {[%clk 0:00:07]} 68. Ke6 {[%clk 0:00:12]}  Rf4 {[%clk 0:00:06]} 69. Ng5 {[%clk 0:00:10]}  Rg4 {[%clk 0:00:04]} 70. Nxh3 {[%clk 0:00:10]}  Re4+ {[%clk 0:00:03]} 71. Kd5 {[%clk 0:00:11]} 1-0


[Site "https://www.chess.com"]